[Event "Titled Tuesday Blitz August 08 Early 2023"]
[White "Mikhaylova, Irina"]
[Black "Rietze, Clemens, Dr."]
[WhiteFideId "4109040"]
[BlackFideId "24620351"]
[WhiteElo "2267"]
[BlackElo "2409"]
[Result "1/2-1/2"]
[Round "8"]
[TimeControl "180+1"]
[Date "2023.08.08"]
[WhiteClock "0:00:06"]
[BlackClock "0:00:06"]
[Board "166"]

1. d4 {[%clk 0:03:00]}  Nf6 {[%clk 0:03:00]} 2. Nf3 {[%clk 0:03:01]}  g6 {[%clk 0:03:00]} 3. c4 {[%clk 0:03:01]}  Bg7 {[%clk 0:03:00]} 4. Nc3 {[%clk 0:03:02]}  O-O {[%clk 0:03:01]} 5. e4 {[%clk 0:03:02]}  d6 {[%clk 0:03:01]} 6. Be2 {[%clk 0:03:02]}  Na6 {[%clk 0:03:02]} 7. O-O {[%clk 0:03:02]}  e5 {[%clk 0:03:03]} 8. Be3 {[%clk 0:03:03]}  Ng4 {[%clk 0:03:02]} 9. Bg5 {[%clk 0:03:03]}  f6 {[%clk 0:03:03]} 10. Bh4 {[%clk 0:03:03]}  Nh6 {[%clk 0:03:03]} 11. d5 {[%clk 0:03:01]}  c6 {[%clk 0:02:57]} 12. Nd2 {[%clk 0:02:54]}  Nf7 {[%clk 0:02:49]} 13. Rb1 {[%clk 0:02:39]}  Nc7 {[%clk 0:02:39]} 14. b4 {[%clk 0:02:33]}  Qe8 {[%clk 0:02:28]} 15. f3 {[%clk 0:02:24]}  f5 {[%clk 0:02:24]} 16. Bf2 {[%clk 0:02:24]}  Qe7 {[%clk 0:02:20]} 17. c5 {[%clk 0:02:11]}  Rd8 {[%clk 0:02:18]} 18. cxd6 {[%clk 0:01:47]}  Nxd6 {[%clk 0:02:15]} 19. dxc6 {[%clk 0:01:47]}  bxc6 {[%clk 0:02:13]} 20. Qc2 {[%clk 0:01:27]}  Ne6 {[%clk 0:02:11]} 21. Nc4 {[%clk 0:01:17]}  Nd4 {[%clk 0:02:06]} 22. Qb2 {[%clk 0:01:17]}  Nxe2+ {[%clk 0:01:59]} 23. Qxe2 {[%clk 0:01:16]}  Ba6 {[%clk 0:01:59]} 24. b5 {[%clk 0:01:13]}  Nxb5 {[%clk 0:01:54]} 25. Nxb5 {[%clk 0:01:05]}  Bxb5 {[%clk 0:01:52]} 26. Qc2 {[%clk 0:01:03]}  Qe6 {[%clk 0:01:34]} 27. Rfc1 {[%clk 0:01:02]}  Bh6 {[%clk 0:01:32]} 28. Be3 {[%clk 0:00:58]}  Bxc4 {[%clk 0:01:25]} 29. Bxh6 {[%clk 0:00:58]}  Bd3 {[%clk 0:01:25]} 30. Qb3 {[%clk 0:00:46]}  Qxb3 {[%clk 0:01:03]} 31. Rxb3 {[%clk 0:00:46]}  Bb5 {[%clk 0:01:00]} 32. a4 {[%clk 0:00:22]}  Bxa4 {[%clk 0:00:43]} 33. Rb7 {[%clk 0:00:22]}  Bb5 {[%clk 0:00:38]} 34. Rg7+ {[%clk 0:00:21]}  Kh8 {[%clk 0:00:38]} 35. Re7 {[%clk 0:00:20]}  Re8 {[%clk 0:00:38]} 36. Rc7 {[%clk 0:00:14]}  a5 {[%clk 0:00:31]} 37. exf5 {[%clk 0:00:10]}  gxf5 {[%clk 0:00:30]} 38. Rd1 {[%clk 0:00:11]}  Red8 {[%clk 0:00:16]} 39. Bg7+ {[%clk 0:00:10]}  Kg8 {[%clk 0:00:15]} 40. Re1 {[%clk 0:00:10]}  Re8 {[%clk 0:00:11]} 41. Rxe5 {[%clk 0:00:10]}  Rxe5 {[%clk 0:00:09]} 42. Bxe5 {[%clk 0:00:11]}  a4 {[%clk 0:00:10]} 43. Rg7+ {[%clk 0:00:11]}  Kf8 {[%clk 0:00:10]} 44. Rxh7 {[%clk 0:00:11]}  Ra6 {[%clk 0:00:09]} 45. Rh5 {[%clk 0:00:08]}  Bd3 {[%clk 0:00:09]} 46. Kf2 {[%clk 0:00:07]}  Kf7 {[%clk 0:00:08]} 47. Ke3 {[%clk 0:00:07]}  Kg6 {[%clk 0:00:08]} 48. Rh8 {[%clk 0:00:06]}  Bb5 {[%clk 0:00:08]} 49. Rg8+ {[%clk 0:00:06]}  Kf7 {[%clk 0:00:08]} 50. Rg7+ {[%clk 0:00:07]}  Ke6 {[%clk 0:00:08]} 51. Kf4 {[%clk 0:00:07]}  a3 {[%clk 0:00:08]} 52. Rg6+ {[%clk 0:00:08]}  Kd5 {[%clk 0:00:07]} 53. h4 {[%clk 0:00:08]}  a2 {[%clk 0:00:07]} 54. h5 {[%clk 0:00:09]}  a1=Q {[%clk 0:00:07]} 55. Bxa1 {[%clk 0:00:08]}  Rxa1 {[%clk 0:00:08]} 56. h6 {[%clk 0:00:09]}  Ra7 {[%clk 0:00:08]} 57. Rg7 {[%clk 0:00:08]}  Ra8 {[%clk 0:00:08]} 58. h7 {[%clk 0:00:09]}  Rh8 {[%clk 0:00:08]} 59. Kxf5 {[%clk 0:00:09]}  Bd3+ {[%clk 0:00:08]} 60. Kf6 {[%clk 0:00:09]}  Rxh7 {[%clk 0:00:08]} 61. Rg5+ {[%clk 0:00:09]}  Kd6 {[%clk 0:00:08]} 62. g4 {[%clk 0:00:09]}  Re7 {[%clk 0:00:06]} 63. f4 {[%clk 0:00:08]}  c5 {[%clk 0:00:06]} 64. f5 {[%clk 0:00:08]}  c4 {[%clk 0:00:07]} 65. Rg8 {[%clk 0:00:08]}  Rd7 {[%clk 0:00:06]} 66. Rc8 {[%clk 0:00:08]}  Rc7 {[%clk 0:00:06]} 67. Rd8+ {[%clk 0:00:08]}  Rd7 {[%clk 0:00:05]} 68. Rc8 {[%clk 0:00:08]}  Rc7 {[%clk 0:00:06]} 69. Rd8+ {[%clk 0:00:09]}  Kc5 {[%clk 0:00:06]} 70. g5 {[%clk 0:00:08]}  Be2 {[%clk 0:00:06]} 71. g6 {[%clk 0:00:08]}  c3 {[%clk 0:00:06]} 72. g7 {[%clk 0:00:08]}  Bc4 {[%clk 0:00:05]} 73. Rd1 {[%clk 0:00:06]}  Kb5 {[%clk 0:00:06]} 74. Rc1 {[%clk 0:00:06]}  Kb4 {[%clk 0:00:05]} 75. Kg6 {[%clk 0:00:06]}  Kb3 {[%clk 0:00:05]} 76. f6 {[%clk 0:00:06]}  Kb2 {[%clk 0:00:05]} 77. Re1 {[%clk 0:00:07]}  Bf7+ {[%clk 0:00:05]} 78. Kh7 {[%clk 0:00:07]}  c2 {[%clk 0:00:06]} 79. g8=Q {[%clk 0:00:06]}  Bxg8+ {[%clk 0:00:06]} 80. Kxg8 {[%clk 0:00:07]}  Rd7 {[%clk 0:00:04]} 81. f7 {[%clk 0:00:06]}  Rd1 {[%clk 0:00:04]} 82. Rxd1 {[%clk 0:00:06]}  cxd1=Q {[%clk 0:00:04]} 83. f8=Q {[%clk 0:00:06]}  Kc3 {[%clk 0:00:05]} 84. Qg7+ {[%clk 0:00:07]}  Kd2 {[%clk 0:00:05]} 85. Qd7+ {[%clk 0:00:06]}  Kc2 {[%clk 0:00:06]} 86. Qxd1+ {[%clk 0:00:06]}  Kxd1 {[%clk 0:00:06]} 1/2-1/2


[Site "https://www.chess.com"]

[Event "Titled Tuesday Blitz August 08 Early 2023"]
[White "Lisjak, Zlatko"]
[Black "Melikhov, Evgeny V."]
[WhiteFideId "14502186"]
[BlackFideId "4122046"]
[WhiteElo "2193"]
[BlackElo "2353"]
[Result "0-1"]
[Round "8"]
[TimeControl "180+1"]
[Date "2023.08.08"]
[WhiteClock "0:00:00"]
[BlackClock "0:01:19"]
[Board "170"]

1. d4 {[%clk 0:03:00]}  Nf6 {[%clk 0:02:59]} 2. Nc3 {[%clk 0:03:01]}  d5 {[%clk 0:02:59]} 3. Bf4 {[%clk 0:03:00]}  c5 {[%clk 0:02:59]} 4. e4 {[%clk 0:02:58]}  cxd4 {[%clk 0:02:37]} 5. Qxd4 {[%clk 0:02:57]}  Nc6 {[%clk 0:02:36]} 6. Bb5 {[%clk 0:02:50]}  Bd7 {[%clk 0:02:36]} 7. Bxc6 {[%clk 0:02:35]}  Bxc6 {[%clk 0:02:36]} 8. e5 {[%clk 0:02:31]}  Ne4 {[%clk 0:02:36]} 9. O-O-O {[%clk 0:02:24]}  Nxc3 {[%clk 0:02:32]} 10. Qxc3 {[%clk 0:02:23]}  e6 {[%clk 0:02:32]} 11. Nf3 {[%clk 0:02:22]}  Rc8 {[%clk 0:02:29]} 12. Nd4 {[%clk 0:02:14]}  Qb6 {[%clk 0:02:21]} 13. Qg3 {[%clk 0:01:59]}  Ba4 {[%clk 0:02:05]} 14. Be3 {[%clk 0:01:20]}  Qa5 {[%clk 0:01:52]} 15. Kb1 {[%clk 0:01:17]}  g6 {[%clk 0:01:50]} 16. h4 {[%clk 0:01:15]}  h5 {[%clk 0:01:42]} 17. Bg5 {[%clk 0:00:50]}  Bc5 {[%clk 0:01:39]} 18. Nb3 {[%clk 0:00:30]}  Bxb3 {[%clk 0:01:34]} 19. Qxb3 {[%clk 0:00:22]}  Qb4 {[%clk 0:01:25]} 20. Bf6 {[%clk 0:00:15]}  Qxb3 {[%clk 0:01:23]} 21. cxb3 {[%clk 0:00:14]}  Rg8 {[%clk 0:01:23]} 22. Rhf1 {[%clk 0:00:07]}  Kd7 {[%clk 0:01:22]} 23. Rc1 {[%clk 0:00:00]}  Bb6 {[%clk 0:01:19]} 0-1


[Site "https://www.chess.com"]

[Event "Titled Tuesday Blitz August 08 Early 2023"]
[White "Yuruultei Batbaatar"]
[Black "Kazakov, Mikhail"]
[WhiteFideId "4905962"]
[BlackFideId "14102749"]
[WhiteElo "2217"]
[BlackElo "2396"]
[Result "0-1"]
[Round "8"]
[TimeControl "180+1"]
[Date "2023.08.08"]
[WhiteClock "0:00:03"]
[BlackClock "0:00:12"]
[Board "178"]

1. d4 {[%clk 0:03:00]}  d5 {[%clk 0:02:42]} 2. c4 {[%clk 0:03:01]}  c6 {[%clk 0:02:42]} 3. Nf3 {[%clk 0:02:56]}  Nf6 {[%clk 0:02:41]} 4. Qc2 {[%clk 0:02:55]}  dxc4 {[%clk 0:02:37]} 5. Qxc4 {[%clk 0:02:53]}  Bf5 {[%clk 0:02:36]} 6. Nc3 {[%clk 0:02:52]}  e6 {[%clk 0:02:34]} 7. g3 {[%clk 0:02:52]}  Nbd7 {[%clk 0:02:33]} 8. Bg2 {[%clk 0:02:53]}  Ne4 {[%clk 0:02:28]} 9. O-O {[%clk 0:02:47]}  Nxc3 {[%clk 0:02:26]} 10. Qxc3 {[%clk 0:02:46]}  Be4 {[%clk 0:02:25]} 11. Bf4 {[%clk 0:02:37]}  Be7 {[%clk 0:02:21]} 12. Rfd1 {[%clk 0:02:28]}  O-O {[%clk 0:01:49]} 13. Nd2 {[%clk 0:02:17]}  Bxg2 {[%clk 0:01:45]} 14. Kxg2 {[%clk 0:02:18]}  Nf6 {[%clk 0:01:26]} 15. e4 {[%clk 0:02:15]}  Rc8 {[%clk 0:01:20]} 16. Bg5 {[%clk 0:02:06]}  Nd5 {[%clk 0:01:06]} 17. exd5 {[%clk 0:01:49]}  Qxd5+ {[%clk 0:01:05]} 18. Nf3 {[%clk 0:01:44]}  Bxg5 {[%clk 0:01:04]} 19. Qb4 {[%clk 0:01:40]}  b6 {[%clk 0:00:51]} 20. Qb3 {[%clk 0:01:28]}  Bf6 {[%clk 0:00:49]} 21. Qxd5 {[%clk 0:01:26]}  cxd5 {[%clk 0:00:49]} 22. Rac1 {[%clk 0:01:24]}  Rfd8 {[%clk 0:00:47]} 23. a3 {[%clk 0:01:17]}  Kf8 {[%clk 0:00:46]} 24. b3 {[%clk 0:01:13]}  b5 {[%clk 0:00:39]} 25. g4 {[%clk 0:01:04]}  Be7 {[%clk 0:00:38]} 26. b4 {[%clk 0:01:01]}  Rc4 {[%clk 0:00:36]} 27. Ne5 {[%clk 0:00:59]}  Rcc8 {[%clk 0:00:31]} 28. Nc6 {[%clk 0:00:54]}  Rd7 {[%clk 0:00:25]} 29. Nxa7 {[%clk 0:00:21]}  Rxc1 {[%clk 0:00:24]} 30. Rxc1 {[%clk 0:00:22]}  Rxa7 {[%clk 0:00:25]} 31. Rc8+ {[%clk 0:00:22]}  Bd8 {[%clk 0:00:25]} 32. Rxd8+ {[%clk 0:00:23]}  Ke7 {[%clk 0:00:26]} 33. Rb8 {[%clk 0:00:23]}  Rxa3 {[%clk 0:00:26]} 34. Rxb5 {[%clk 0:00:23]}  Rd3 {[%clk 0:00:26]} 35. Rb7+ {[%clk 0:00:22]}  Kf6 {[%clk 0:00:26]} 36. g5+ {[%clk 0:00:17]}  Kg6 {[%clk 0:00:26]} 37. b5 {[%clk 0:00:17]}  Rxd4 {[%clk 0:00:25]} 38. f3 {[%clk 0:00:15]}  Rb4 {[%clk 0:00:24]} 39. b6 {[%clk 0:00:15]}  d4 {[%clk 0:00:21]} 40. Rb8 {[%clk 0:00:15]}  Kxg5 {[%clk 0:00:20]} 41. b7 {[%clk 0:00:15]}  Kf4 {[%clk 0:00:20]} 42. Rd8 {[%clk 0:00:05]}  Rxb7 {[%clk 0:00:18]} 43. Rxd4+ {[%clk 0:00:05]}  Kf5 {[%clk 0:00:18]} 44. Ra4 {[%clk 0:00:05]}  e5 {[%clk 0:00:18]} 45. Kg3 {[%clk 0:00:04]}  f6 {[%clk 0:00:18]} 46. Ra5 {[%clk 0:00:05]}  g5 {[%clk 0:00:17]} 47. Rc5 {[%clk 0:00:03]}  h5 {[%clk 0:00:17]} 48. h3 {[%clk 0:00:02]}  Rb3 {[%clk 0:00:15]} 49. Ra5 {[%clk 0:00:01]}  g4 {[%clk 0:00:12]} 50. hxg4+ {[%clk 0:00:02]}  hxg4 {[%clk 0:00:12]} 51. Kg2 {[%clk 0:00:02]}  Rxf3 {[%clk 0:00:12]} 52. Ra4 {[%clk 0:00:03]}  Rb3 {[%clk 0:00:12]} 53. Rb4 {[%clk 0:00:03]} 0-1


[Site "https://www.chess.com"]

[Event "Titled Tuesday Blitz August 08 Early 2023"]
[White "Castella Garcia, Fausto"]
[Black "Jodorcovsky Werjivker, Paulo"]
[WhiteFideId "3501922"]
[BlackFideId "3700305"]
[WhiteElo "2374"]
[BlackElo "2184"]
[Result "0-1"]
[Round "8"]
[TimeControl "180+1"]
[Date "2023.08.08"]
[WhiteClock "0:01:11"]
[BlackClock "0:01:02"]
[Board "181"]

1. e4 {[%clk 0:03:00]}  c5 {[%clk 0:02:59]} 2. Nf3 {[%clk 0:02:59]}  Nc6 {[%clk 0:03:00]} 3. Bb5 {[%clk 0:02:58]}  g6 {[%clk 0:03:00]} 4. c3 {[%clk 0:02:58]}  Bg7 {[%clk 0:03:00]} 5. d4 {[%clk 0:02:57]}  Nf6 {[%clk 0:02:35]} 6. e5 {[%clk 0:02:55]}  Ne4 {[%clk 0:02:34]} 7. Qe2 {[%clk 0:02:43]}  d5 {[%clk 0:02:30]} 8. exd6 {[%clk 0:02:37]}  Nxd6 {[%clk 0:02:29]} 9. Bxc6+ {[%clk 0:02:31]}  bxc6 {[%clk 0:02:29]} 10. dxc5 {[%clk 0:02:32]}  Nb7 {[%clk 0:02:22]} 11. Be3 {[%clk 0:02:28]}  O-O {[%clk 0:02:17]} 12. O-O {[%clk 0:02:27]}  Be6 {[%clk 0:02:16]} 13. Nbd2 {[%clk 0:02:26]}  Qc7 {[%clk 0:02:15]} 14. Bd4 {[%clk 0:02:13]}  Rad8 {[%clk 0:02:10]} 15. Bxg7 {[%clk 0:02:06]}  Kxg7 {[%clk 0:02:09]} 16. b4 {[%clk 0:02:06]}  Rd7 {[%clk 0:02:01]} 17. Nd4 {[%clk 0:02:00]}  Bd5 {[%clk 0:01:55]} 18. f4 {[%clk 0:01:56]}  Nd8 {[%clk 0:01:49]} 19. c4 {[%clk 0:01:52]}  Bxg2 {[%clk 0:01:44]} 20. Nf5+ {[%clk 0:01:48]}  gxf5 {[%clk 0:01:45]} 21. Qxg2+ {[%clk 0:01:49]}  Kh8 {[%clk 0:01:45]} 22. Kh1 {[%clk 0:01:46]}  Ne6 {[%clk 0:01:45]} 23. Rg1 {[%clk 0:01:39]}  Qxf4 {[%clk 0:01:39]} 24. Nf3 {[%clk 0:01:36]}  Rdd8 {[%clk 0:01:36]} 25. Raf1 {[%clk 0:01:25]}  Rg8 {[%clk 0:01:35]} 26. Qh3 {[%clk 0:01:22]}  Rxg1+ {[%clk 0:01:09]} 27. Rxg1 {[%clk 0:01:20]}  Rg8 {[%clk 0:01:06]} 28. Rf1 {[%clk 0:01:20]}  Qxc4 {[%clk 0:01:05]} 29. Qxf5 {[%clk 0:01:17]}  Ng7 {[%clk 0:01:02]} 30. Qe5 {[%clk 0:01:11]}  Qxf1+ {[%clk 0:01:02]} 0-1


[Site "https://www.chess.com"]

[Event "Titled Tuesday Blitz August 08 Early 2023"]
[White "Ai, Evan"]
[Black "Tarnowska, Aleksandra"]
[WhiteFideId "2094770"]
[BlackFideId "1180967"]
[WhiteElo "2335"]
[BlackElo "2167"]
[Result "0-1"]
[Round "8"]
[TimeControl "180+1"]
[Date "2023.08.08"]
[WhiteClock "0:00:03"]
[BlackClock "0:00:30"]
[Board "184"]

1. e4 {[%clk 0:02:32]}  c5 {[%clk 0:02:58]} 2. Nf3 {[%clk 0:02:30]}  e6 {[%clk 0:02:58]} 3. d4 {[%clk 0:02:29]}  cxd4 {[%clk 0:02:59]} 4. Nxd4 {[%clk 0:02:30]}  a6 {[%clk 0:02:59]} 5. Bd3 {[%clk 0:02:28]}  Bc5 {[%clk 0:02:59]} 6. Nb3 {[%clk 0:02:29]}  Be7 {[%clk 0:02:59]} 7. O-O {[%clk 0:02:29]}  d6 {[%clk 0:02:56]} 8. c4 {[%clk 0:02:29]}  Nd7 {[%clk 0:02:57]} 9. f4 {[%clk 0:02:25]}  Ngf6 {[%clk 0:02:55]} 10. Nc3 {[%clk 0:02:24]}  Qc7 {[%clk 0:02:50]} 11. Be3 {[%clk 0:02:23]}  Nc5 {[%clk 0:02:36]} 12. Nxc5 {[%clk 0:02:23]}  dxc5 {[%clk 0:02:36]} 13. e5 {[%clk 0:02:23]}  Nd7 {[%clk 0:02:32]} 14. Qg4 {[%clk 0:02:17]}  g6 {[%clk 0:02:29]} 15. Rad1 {[%clk 0:02:01]}  b6 {[%clk 0:02:04]} 16. Ne4 {[%clk 0:01:29]}  Bb7 {[%clk 0:01:54]} 17. Qe2 {[%clk 0:01:02]}  h5 {[%clk 0:01:39]} 18. Bc2 {[%clk 0:00:48]}  Rd8 {[%clk 0:01:33]} 19. Nd6+ {[%clk 0:00:41]}  Bxd6 {[%clk 0:01:31]} 20. Rxd6 {[%clk 0:00:42]}  O-O {[%clk 0:01:14]} 21. Rfd1 {[%clk 0:00:21]}  Nb8 {[%clk 0:01:09]} 22. Bf2 {[%clk 0:00:12]}  Nc6 {[%clk 0:00:54]} 23. Bh4 {[%clk 0:00:12]}  Rxd6 {[%clk 0:00:55]} 24. Rxd6 {[%clk 0:00:10]}  Nd4 {[%clk 0:00:53]} 25. Qf2 {[%clk 0:00:09]}  Nxc2 {[%clk 0:00:52]} 26. Qxc2 {[%clk 0:00:10]}  Ba8 {[%clk 0:00:51]} 27. Bf6 {[%clk 0:00:10]}  Qb7 {[%clk 0:00:51]} 28. Qd2 {[%clk 0:00:10]}  Kh7 {[%clk 0:00:49]} 29. Kf1 {[%clk 0:00:06]}  Qe4 {[%clk 0:00:49]} 30. h3 {[%clk 0:00:05]}  Qb1+ {[%clk 0:00:48]} 31. Kf2 {[%clk 0:00:05]}  Qe4 {[%clk 0:00:46]} 32. Kg3 {[%clk 0:00:05]}  b5 {[%clk 0:00:42]} 33. cxb5 {[%clk 0:00:04]}  axb5 {[%clk 0:00:43]} 34. Kh2 {[%clk 0:00:05]}  c4 {[%clk 0:00:43]} 35. Qf2 {[%clk 0:00:04]}  b4 {[%clk 0:00:40]} 36. Qg3 {[%clk 0:00:05]}  Bd5 {[%clk 0:00:35]} 37. Qg5 {[%clk 0:00:05]}  c3 {[%clk 0:00:33]} 38. bxc3 {[%clk 0:00:06]}  bxc3 {[%clk 0:00:34]} 39. Rd7 {[%clk 0:00:05]}  c2 {[%clk 0:00:33]} 40. Be7 {[%clk 0:00:05]}  c1=Q {[%clk 0:00:29]} 41. Bxf8 {[%clk 0:00:05]}  Qcxf4+ {[%clk 0:00:29]} 42. Qxf4 {[%clk 0:00:03]}  Qxf4+ {[%clk 0:00:30]} 0-1


[Site "https://www.chess.com"]

[Event "Titled Tuesday Blitz August 08 Early 2023"]
[White "Mirzanurov, Bulat"]
[Black "Stachanczyk, Jacek"]
[WhiteFideId "4184521"]
[BlackFideId "1116657"]
[WhiteElo "2167"]
[BlackElo "2331"]
[Result "1/2-1/2"]
[Round "8"]
[TimeControl "180+1"]
[Date "2023.08.08"]
[WhiteClock "0:01:03"]
[BlackClock "0:01:59"]
[Board "185"]

1. e4 {[%clk 0:03:00]}  c5 {[%clk 0:02:54]} 2. Nf3 {[%clk 0:02:59]}  d6 {[%clk 0:02:54]} 3. d4 {[%clk 0:02:59]}  cxd4 {[%clk 0:02:55]} 4. Nxd4 {[%clk 0:03:00]}  Nf6 {[%clk 0:02:55]} 5. f3 {[%clk 0:03:00]}  Nc6 {[%clk 0:02:56]} 6. Nc3 {[%clk 0:02:59]}  g6 {[%clk 0:02:54]} 7. Be3 {[%clk 0:02:59]}  Bg7 {[%clk 0:02:54]} 8. Qd2 {[%clk 0:02:59]}  O-O {[%clk 0:02:55]} 9. O-O-O {[%clk 0:02:59]}  d5 {[%clk 0:02:55]} 10. exd5 {[%clk 0:02:58]}  Nxd5 {[%clk 0:02:55]} 11. Nxc6 {[%clk 0:02:59]}  bxc6 {[%clk 0:02:55]} 12. Bd4 {[%clk 0:02:59]}  Nxc3 {[%clk 0:02:51]} 13. Qxc3 {[%clk 0:02:59]}  Bh6+ {[%clk 0:02:51]} 14. Be3 {[%clk 0:02:59]}  Bxe3+ {[%clk 0:02:50]} 15. Qxe3 {[%clk 0:02:59]}  Qb6 {[%clk 0:02:51]} 16. Qxe7 {[%clk 0:02:50]}  Be6 {[%clk 0:02:50]} 17. Qa3 {[%clk 0:02:44]}  Rad8 {[%clk 0:02:49]} 18. Bd3 {[%clk 0:02:42]}  Rd4 {[%clk 0:02:44]} 19. Be4 {[%clk 0:02:35]}  Rfd8 {[%clk 0:02:42]} 20. Rxd4 {[%clk 0:02:31]}  Qxd4 {[%clk 0:02:41]} 21. Qc3 {[%clk 0:01:51]}  Qxc3 {[%clk 0:02:32]} 22. bxc3 {[%clk 0:01:51]}  c5 {[%clk 0:02:22]} 23. a3 {[%clk 0:01:48]}  Kg7 {[%clk 0:02:17]} 24. Rd1 {[%clk 0:01:48]}  Rxd1+ {[%clk 0:02:16]} 25. Kxd1 {[%clk 0:01:48]}  Kf6 {[%clk 0:02:17]} 26. Kd2 {[%clk 0:01:46]}  Ke5 {[%clk 0:02:18]} 27. Ke3 {[%clk 0:01:45]}  f5 {[%clk 0:02:18]} 28. Bd3 {[%clk 0:01:44]}  f4+ {[%clk 0:02:17]} 29. Ke2 {[%clk 0:01:40]}  c4 {[%clk 0:02:12]} 30. Be4 {[%clk 0:01:39]}  Bf7 {[%clk 0:02:12]} 31. g3 {[%clk 0:01:37]}  h6 {[%clk 0:02:11]} 32. gxf4+ {[%clk 0:01:11]}  Kxf4 {[%clk 0:02:12]} 33. Kf2 {[%clk 0:01:11]}  g5 {[%clk 0:02:12]} 34. Bc6 {[%clk 0:01:08]}  Be6 {[%clk 0:02:05]} 35. Bb7 {[%clk 0:01:06]}  Bf7 {[%clk 0:02:05]} 36. Be4 {[%clk 0:01:05]}  Bg8 {[%clk 0:02:04]} 37. Bb7 {[%clk 0:01:05]}  Bf7 {[%clk 0:02:00]} 38. Bc6 {[%clk 0:01:03]}  Bg8 {[%clk 0:02:00]} 39. Bb7 {[%clk 0:01:03]}  Bf7 {[%clk 0:01:59]} 1/2-1/2


[Site "https://www.chess.com"]

[Event "Titled Tuesday Blitz August 08 Early 2023"]
[White "Butti, Enrique"]
[Black "Osinovsky, Stepan"]
[WhiteFideId "3700470"]
[BlackFideId "4157354"]
[WhiteElo "2161"]
[BlackElo "2316"]
[Result "0-1"]
[Round "8"]
[TimeControl "180+1"]
[Date "2023.08.08"]
[WhiteClock "0:01:11"]
[BlackClock "0:01:02"]
[Board "187"]

1. d4 {[%clk 0:03:00]}  Nf6 {[%clk 0:02:59]} 2. c4 {[%clk 0:02:59]}  g6 {[%clk 0:03:00]} 3. Nc3 {[%clk 0:02:58]}  Bg7 {[%clk 0:03:01]} 4. e4 {[%clk 0:02:57]}  O-O {[%clk 0:03:02]} 5. Be2 {[%clk 0:02:57]}  d6 {[%clk 0:03:02]} 6. Nf3 {[%clk 0:02:56]}  e5 {[%clk 0:03:03]} 7. d5 {[%clk 0:02:56]}  Nbd7 {[%clk 0:02:59]} 8. Bg5 {[%clk 0:02:54]}  Nc5 {[%clk 0:02:59]} 9. Nd2 {[%clk 0:02:49]}  a5 {[%clk 0:02:56]} 10. b3 {[%clk 0:02:43]}  h6 {[%clk 0:02:49]} 11. Bh4 {[%clk 0:02:42]}  Qd7 {[%clk 0:02:34]} 12. O-O {[%clk 0:02:34]}  Nh7 {[%clk 0:02:34]} 13. a3 {[%clk 0:02:30]}  f5 {[%clk 0:02:31]} 14. f3 {[%clk 0:02:24]}  h5 {[%clk 0:02:06]} 15. b4 {[%clk 0:02:22]}  axb4 {[%clk 0:02:05]} 16. axb4 {[%clk 0:02:22]}  Rxa1 {[%clk 0:02:06]} 17. Qxa1 {[%clk 0:02:21]}  Bh6 {[%clk 0:02:07]} 18. bxc5 {[%clk 0:02:09]}  Bxd2 {[%clk 0:02:04]} 19. cxd6 {[%clk 0:02:08]}  Be3+ {[%clk 0:02:01]} 20. Bf2 {[%clk 0:02:01]}  Bxf2+ {[%clk 0:01:39]} 21. Rxf2 {[%clk 0:02:01]}  Qxd6 {[%clk 0:01:35]} 22. Nb5 {[%clk 0:01:51]}  Qe7 {[%clk 0:01:08]} 23. Qa3 {[%clk 0:01:48]}  Qxa3 {[%clk 0:01:06]} 24. Nxa3 {[%clk 0:01:47]}  fxe4 {[%clk 0:01:06]} 25. fxe4 {[%clk 0:01:46]}  Ng5 {[%clk 0:01:06]} 26. Rxf8+ {[%clk 0:01:44]}  Kxf8 {[%clk 0:01:07]} 27. Bd3 {[%clk 0:01:39]}  Ke7 {[%clk 0:01:06]} 28. c5 {[%clk 0:01:37]}  b6 {[%clk 0:01:05]} 29. cxb6 {[%clk 0:01:36]}  cxb6 {[%clk 0:01:05]} 30. Nc4 {[%clk 0:01:35]}  Ba6 {[%clk 0:01:01]} 31. Nxe5 {[%clk 0:01:32]}  Bxd3 {[%clk 0:01:02]} 32. Nxd3 {[%clk 0:01:31]}  Nxe4 {[%clk 0:01:03]} 33. Nf4 {[%clk 0:01:23]}  b5 {[%clk 0:01:03]} 34. Nxg6+ {[%clk 0:01:22]}  Kd6 {[%clk 0:01:04]} 35. Nf4 {[%clk 0:01:21]}  b4 {[%clk 0:01:04]} 36. Nd3 {[%clk 0:01:20]}  b3 {[%clk 0:01:04]} 37. Kf1 {[%clk 0:01:20]}  Kxd5 {[%clk 0:01:05]} 38. Ke2 {[%clk 0:01:20]}  Kd4 {[%clk 0:01:05]} 39. g3 {[%clk 0:01:19]}  Kc3 {[%clk 0:01:04]} 40. Ke3 {[%clk 0:01:18]}  Nd2 {[%clk 0:01:01]} 41. h3 {[%clk 0:01:17]}  Nf1+ {[%clk 0:01:00]} 42. Kf2 {[%clk 0:01:15]}  Nxg3 {[%clk 0:01:01]} 43. Kxg3 {[%clk 0:01:15]}  Kxd3 {[%clk 0:01:01]} 44. Kh4 {[%clk 0:01:11]}  b2 {[%clk 0:01:02]} 0-1


[Site "https://www.chess.com"]